bitfinex/quotes_ETHUSD_20250505
["timestamp","ask_amount","ask_price","bid_price","bid_amount"]
[1746466662843,1.09658315,1819.8,1819.7,0.13597109]
[1746466663140,1.09658315,1819.8,1819.6,4.623]
[1746466663315,1.09658315,1819.8,1819.7,0.13597109]
[1746466663516,1.09658315,1819.8,1819.6,4.623]
[1746466663707,0.78739913,1819.8,1819.7,0.13597109]
[1746466663911,0.78739913,1819.8,1819.6,4.623]
[1746466664237,0.78739913,1819.8,1819.7,0.13597109]
[1746466664401,1.0967215,1819.8,1819.7,0.13597109]
[1746466664800,1.0967215,1819.8,1819.6,4.623]
[1746466665106,6.59188524,1819.8,1819.7,0.13597109]
[1746466665338,6.59188524,1819.8,1819.6,4.623]
[1746466665531,1.0967215,1819.8,1819.7,0.13597109]
[1746466665735,1.0967215,1819.8,1819.6,4.623]
[1746466665943,7.80057835,1819.8,1819.7,0.13597109]
[1746466666441,7.80057835,1819.8,1819.5,10.11897766]
[1746466666636,6.59191589,1819.8,1819.7,0.13597109]
[1746466666829,6.59191589,1819.8,1819.6,0.13629413]
[1746466667035,6.59191589,1819.8,1819.7,0.13597109]
[1746466667408,5.49559713,1819.7,1819.5,4.623]
[1746466667607,5.49601538,1819.5,1819.4,9.83561305]
[1746466667823,6.27694878,1819.6,1819.5,4.623]
[1746466668019,0.7811,1819.6,1819.4,9.83561305]
[1746466668235,12.08228383,1819.6,1819.4,9.83561305]
[1746466668438,6.58632174,1819.6,1819.4,9.83561305]
[1746466668853,0.30932237,1819.5,1819.4,9.83561305]
[1746466671150,0.30932237,1819.5,1819.3,4.623]
[1746466671568,6.27699937,1819.6,1819.3,4.623]
[1746466671719,0.30926856,1819.4,1819.3,4.623]
[1746466672324,0.30926856,1819.4,1819.3,4.76484268]
[1746466673024,0.30926856,1819.4,1819.3,10.26146225]
[1746466673621,0.30926856,1819.4,1819.3,4.76484268]
[1746466674668,0.30926856,1819.4,1819.3,10.26146225]
[1746466674962,0.30926856,1819.4,1819.3,4.76484268]
[1746466678276,5.80558602,1819.4,1819.3,0.14184268]
[1746466678453,7.14492742,1819.4,1819.3,0.14184268]
[1746466678643,0.7588,1819.2,1819.1,3.70561305]
[1746466678839,6.25572172,1819.2,1819.1,3.70561305]
[1746466679045,0.7588,1819.2,1819.0,26.49061305]
[1746466679378,0.30926856,1819.1,1819.0,26.49061305]
[1746466680779,0.30926856,1819.1,1819.0,31.98813916]
[1746466681355,11.74503742,1819.4,1819.0,31.98813916]
[1746466681546,6.24849738,1819.4,1819.0,31.9879846]
[1746466681746,6.24849738,1819.4,1819.1,5.49720545]
[1746466682275,0.30881493,1819.3,1819.1,5.49704821]
[1746466682483,0.30881493,1819.3,1819.2,5.49692172]
[1746466683044,3.0,1819.5,1819.2,5.49692172]
[1746466683576,6.26746253,1819.6,1819.2,5.49692172]
[1746466683782,0.30877338,1819.4,1819.2,5.49692172]
[1746466683957,0.30877338,1819.4,1819.2,6.67708871]
[1746466684493,0.30877338,1819.4,1819.2,12.17380784]
[1746466684700,5.49603498,1819.5,1819.2,6.67688612]
[1746466684903,5.49603498,1819.5,1819.1,5.49703739]
[1746466684904,0.7716,1819.4,1819.1,5.49703739]
[1746466685307,3.95446886,1819.4,1818.9,3.70561305]
[1746466685503,5.49714426,1819.2,1818.9,8.31061305]
[1746466685871,6.57716931,1819.3,1818.9,8.31061305]
[1746466686071,5.49701084,1819.2,1818.9,8.31061305]
[1746466686308,0.30888356,1819.1,1818.9,8.31061305]
[1746466686805,6.29592611,1819.0,1818.9,8.31061305]
[1746466686965,9.47879497,1819.0,1818.9,3.70561305]
[1746466687166,9.47879497,1819.0,1818.9,3.84185851]
[1746466687401,9.78767853,1819.0,1818.9,3.84185851]
[1746466688008,12.78767853,1819.0,1818.9,3.84185851]
[1746466688306,14.67424089,1819.0,1818.9,3.84185851]
[1746466688978,5.99384592,1819.0,1818.9,3.84185851]
[1746466689182,0.30888356,1819.0,1818.9,3.84185851]
[1746466690104,5.80640967,1819.0,1818.9,0.13624546]
[1746466690407,11.30416978,1819.0,1818.7,4.605]
[1746466690563,5.80640967,1819.0,1818.9,0.14094439]
[1746466690905,1.43926359,1819.0,1818.9,0.14094439]
[1746466691093,0.30888356,1819.0,1818.7,10.1034192]
[1746466691494,0.30888356,1819.0,1818.8,0.14133238]
[1746466691809,5.49782835,1818.9,1818.8,0.14133238]
[1746466692516,5.80671191,1818.9,1818.8,0.14133238]
[1746466692711,6.61381191,1818.9,1818.8,0.14133238]
[1746466693023,7.82494871,1818.9,1818.8,0.14133238]
[1746466693403,1.11598356,1818.9,1818.8,0.14133238]
[1746466693598,0.30888356,1818.9,1818.6,18.183]
[1746466693792,0.30888356,1818.9,1818.8,0.1331909]
[1746466693993,0.30888356,1818.9,1818.6,23.68154512]
[1746466693994,5.49755611,1819.0,1818.7,5.63200407]
[1746466694286,3.99756886,1819.2,1818.8,5.63130326]
[1746466694287,0.3083889,1818.9,1818.8,5.63130326]
[1746466694486,0.3083889,1818.9,1818.8,6.85660382]
[1746466694719,0.3083889,1818.9,1818.8,6.91158194]
[1746466694916,0.3083889,1818.9,1818.8,6.85660382]
[1746466695084,11.8075109,1819.3,1818.9,5.49773878]
[1746466695488,5.80539019,1819.2,1819.0,0.13252824]
[1746466695680,5.4972239,1819.1,1819.0,0.1656603]
[1746466696317,5.80565366,1819.1,1819.0,0.1656603]
[1746466699629,12.80512252,1819.1,1819.0,0.1656603]
[1746466699990,6.32963294,1818.7,1818.6,18.183]
[1746466700185,6.32963294,1818.7,1818.5,4.606]
[1746466700186,0.30842976,1818.7,1818.5,4.606]
[1746466700392,0.30842976,1818.7,1818.5,10.91322483]
[1746466700596,0.30842976,1818.7,1818.6,5.49873529]
[1746466701202,0.30842976,1818.8,1818.6,5.49873529]
[1746466701522,0.30842976,1818.8,1818.6,5.49856418]
[1746466702224,0.30842976,1818.8,1818.5,12.55440483]
[1746466702427,5.80668505,1818.8,1818.5,10.91333633]
[1746466703047,4.30039862,1818.8,1818.3,0.7799]
[1746466703330,5.49888705,1818.6,1818.3,0.7799]
[1746466703495,5.80699754,1818.7,1818.3,6.2795129]
[1746466703696,0.30842976,1818.6,1818.3,6.2795129]
[1746466704031,0.3086404,1818.5,1818.3,6.2795129]
[1746466704237,0.3086404,1818.5,1818.3,11.77893965]
[1746466704435,0.3086404,1818.5,1818.4,5.55433322]
[1746466704617,6.18286886,1819.0,1818.7,0.8189]
[1746466704618,5.4976573,1819.0,1818.7,0.8189]
[1746466705019,5.49813063,1818.8,1818.6,4.629]
[1746466705331,0.30862237,1818.7,1818.6,4.629]
[1746466706235,1.51983677,1818.7,1818.6,4.629]
[1746466706402,7.01826971,1818.7,1818.6,4.629]
[1746466709615,5.49878684,1818.6,1818.3,5.4489]
[1746466709939,0.30862237,1818.5,1818.3,5.4489]
[1746466710142,0.30862237,1818.5,1818.3,10.94852883]
[1746466710916,0.30862237,1818.5,1818.4,5.49934007]
[1746466711404,0.30862237,1818.8,1818.5,6.29332729]
[1746466711833,0.30862237,1818.8,1818.5,6.34820135]
[1746466712317,0.30862237,1818.8,1818.5,6.29321559]
[1746466713038,0.30862237,1818.8,1818.6,5.49873149]
[1746466713705,0.30862237,1818.8,1818.5,6.29324516]
[1746466713905,5.80676398,1818.8,1818.5,6.29324516]
[1746466714341,0.30862237,1818.7,1818.5,11.7920801]
[1746466714545,0.30862237,1818.7,1818.5,7.47244295]
[1746466714749,0.30862237,1818.7,1818.6,5.49873529]
[1746466714952,0.30862237,1818.7,1818.5,17.60131008]
[1746466715247,5.80655529,1818.9,1818.5,12.10244295]
[1746466715449,0.30862237,1818.9,1818.5,12.10242829]
[1746466715650,0.30862237,1818.9,1818.6,5.49861768]
[1746466715853,5.80661033,1818.9,1818.5,12.10246757]
[1746466716151,5.80688999,1818.8,1818.5,10.92343492]
[1746466716462,5.80676629,1818.8,1818.5,5.4244]
[1746466716635,5.80676629,1818.8,1818.5,10.92338519]
[1746466716822,0.30862237,1818.8,1818.5,10.92338519]
[1746466717019,0.30862237,1818.7,1818.5,10.92325868]
[1746466717359,0.30862237,1818.7,1818.6,6.59106116]
[1746466717944,0.30862237,1818.7,1818.6,1.09232587]
[1746466718116,0.30862237,1818.7,1818.5,10.92323137]
[1746466718464,0.30862237,1818.7,1818.6,5.49873529]
[1746466718765,0.30862237,1818.7,1818.6,5.55371893]
[1746466719068,0.30862237,1818.9,1818.6,5.49873529]
[1746466719265,0.30862237,1818.9,1818.6,5.49856346]
[1746466719462,0.30862237,1818.9,1818.6,6.59085981]
[1746466719759,0.30862237,1818.8,1818.6,6.59085981]
[1746466720562,0.30862237,1818.7,1818.6,6.59085981]
[1746466721763,0.30862237,1818.7,1818.6,6.64584032]
[1746466721919,0.30862237,1818.9,1818.7,5.49831667]
[1746466722158,0.30862237,1818.9,1818.8,0.8107]
[1746466722673,0.30862237,1818.9,1818.7,7.23699624]
[1746466723658,0.30862237,1818.8,1818.7,7.23711251]
[1746466724899,0.30862237,1819.0,1818.7,7.23711251]
[1746466725385,11.30405346,1819.0,1818.7,0.8151]
[1746466725593,5.49785227,1818.9,1818.6,6.59086073]
[1746466725993,0.30862237,1818.8,1818.6,6.59086073]
[1746466726294,6.59357743,1818.8,1818.5,10.95725277]
[1746466726493,1.09542237,1818.8,1818.5,10.95725277]
[1746466727162,0.30862237,1818.7,1818.5,16.4560783]
[1746466727655,0.30862237,1818.7,1818.5,10.95722553]
[1746466727862,0.30862237,1818.7,1818.4,9.83561305]
[1746466728076,5.49903766,1818.5,1818.4,3.70561305]
[1746466728874,5.49903766,1818.5,1818.3,3.70561305]
[1746466729074,0.30862237,1818.4,1818.3,3.70561305]
[1746466730584,5.80796244,1818.4,1818.3,3.70561305]
[1746466730784,5.80873525,1818.4,1818.3,3.70561305]
[1746466731385,6.92890264,1818.4,1818.3,3.70561305]
[1746466731711,7.67950264,1818.4,1818.3,3.70561305]
[1746466732015,5.49964252,1818.3,1818.2,4.629]
[1746466732395,5.8090377,1818.3,1818.2,4.629]
[1746466732600,7.4452391,1818.3,1818.2,4.629]
[1746466733788,1.94559658,1818.3,1818.2,4.629]
[1746466733986,0.30939518,1818.3,1818.2,4.629]
[1746466734516,5.8090377,1818.3,1818.2,4.629]
[1746466735312,0.30939518,1818.3,1818.2,4.629]
[1746466737319,0.30939518,1818.3,1818.2,4.78443588]
[1746466737685,0.30939518,1818.3,1818.2,10.28438088]
[1746466738016,0.30939518,1818.3,1818.2,6.44134606]
[1746466739701,0.30939518,1818.3,1818.2,4.78443588]
[1746466741997,6.6023377,1818.3,1818.2,4.78443588]
[1746466742631,0.30939518,1818.3,1818.2,4.78443588]
[1746466743821,5.8090377,1818.3,1818.2,4.78443588]
[1746466745129,6.5697377,1818.3,1818.2,4.78443588]
[1746466745293,8.09494363,1818.3,1818.2,4.78443588]
[1746466746532,0.30939518,1818.3,1818.2,4.78443588]
[1746466747109,0.30939518,1818.3,1818.2,11.10428088]
[1746466748134,0.30939518,1818.3,1818.2,14.83714974]
[1746466748912,0.8298,1819.4,1818.7,0.7737]
[1746466749111,0.8298,1819.4,1818.9,3.18286886]
[1746466749330,6.32628016,1819.4,1819.0,6.28291022]
[1746466750028,0.8298,1819.4,1819.1,5.49707161]
[1746466750227,6.32614897,1819.4,1819.0,11.78009597]
[1746466750630,0.8298,1819.4,1819.1,5.49721448]
[1746466751503,6.32612515,1819.4,1819.0,6.28281202]
[1746466751737,5.49685858,1819.3,1818.9,6.28457927]
[1746466751938,2.04079895,1819.4,1818.9,0.78688393]
[1746466752143,0.79608858,1819.7,1819.3,5.49634557]
[1746466752344,0.79608858,1819.7,1819.4,5.49627299]
[1746466752516,0.79608858,1819.7,1819.3,10.12644204]
[1746466752719,6.29167861,1819.7,1819.3,10.12644204]
[1746466753419,0.79608858,1819.7,1819.4,5.49627459]
[1746466753603,0.79608858,1819.7,1819.3,10.12642369]
[1746466753804,6.29164494,1819.7,1819.3,10.12642369]
[1746466754118,6.29164494,1819.7,1819.3,4.63]
[1746466754318,5.49585704,1819.6,1819.3,4.63]
[1746466754630,6.29164494,1819.7,1819.3,4.63]
[1746466754939,5.49582027,1819.6,1819.3,4.63]
[1746466755141,7.77038281,1819.7,1819.3,4.63]
[1746466755739,13.26606359,1819.7,1819.3,4.63]
[1746466756039,5.49580701,1819.6,1819.3,4.63]
[1746466758139,7.77037034,1819.7,1819.3,4.63]
[1746466758359,7.77037034,1819.7,1819.3,10.12659301]
[1746466758948,2.2747784,1819.7,1819.3,10.12640789]
[1746466759245,2.2747784,1819.7,1819.4,5.49622315]
[1746466760261,0.00198858,1819.7,1819.4,6.26083295]
[1746466760469,0.00198858,1819.7,1819.5,5.4959483]
[1746466760828,0.00198858,1819.7,1819.4,0.81966031]
[1746466761153,0.00198858,1819.7,1819.5,5.49587105]
[1746466761678,0.00198858,1819.7,1819.6,5.49571334]
[1746466762030,0.00198858,1819.7,1819.6,6.59487178]
[1746466764532,5.51081667,1820.0,1819.6,6.59475469]
[1746466764730,5.51081667,1820.0,1819.6,5.49559625]
[1746466765170,5.51081667,1820.0,1819.6,5.49551508]
[1746466765334,5.51081667,1820.0,1819.7,5.49538012]
[1746466765531,0.01616352,1820.0,1819.4,0.7647]
[1746466765766,0.01616352,1820.0,1819.7,5.49538152]
[1746466766550,5.51068234,1820.0,1819.6,5.49569737]
[1746466766930,0.01616352,1820.0,1819.7,5.49522942]
[1746466767136,0.01616352,1820.0,1819.7,11.7905114]
[1746466767345,0.01616352,1820.0,1819.7,6.29528198]
[1746466768072,5.51068486,1820.0,1819.7,6.29528198]
[1746466768287,0.01616352,1820.0,1819.9,8.67767626]
[1746466768433,0.01616352,1820.0,1819.9,1.63296763]
[1746466768635,0.01616352,1820.0,1819.9,7.73271228]
[1746466768834,0.01616352,1820.0,1819.9,7.18271228]
[1746466769137,0.01616352,1820.0,1819.9,7.73271228]
[1746466769652,0.01616352,1820.0,1819.9,7.67777503]
[1746466770175,0.01616352,1820.0,1819.9,10.67777503]
[1746466770358,0.01616352,1820.0,1819.9,10.73270912]
[1746466770765,0.97058824,1820.2,1820.1,5.49420361]
[1746466770965,0.97058824,1820.2,1820.1,14.29825893]
[1746466771292,1.53015974,1820.7,1820.6,0.7742]
[1746466771583,1.53015974,1820.7,1820.6,5.49269471]
[1746466771769,1.53015974,1820.7,1820.6,6.26689471]
[1746466772301,1.53015974,1820.7,1820.6,9.87181141]
[1746466772579,1.27310924,1821.2,1821.1,15.15612622]
[1746466772763,1.27310924,1821.2,1821.1,20.03912622]
[1746466772968,1.27310924,1821.2,1821.1,20.58912622]
[1746466773277,1.27310924,1821.2,1821.1,14.71138664]
[1746466773440,1.27310924,1821.2,1821.1,20.58912622]
[1746466773642,1.27310924,1821.2,1821.1,21.78534367]
[1746466775165,1.42436975,1821.7,1821.6,12.73101898]
[1746466775481,1.42436975,1821.7,1821.6,20.61301898]
[1746466776781,1.42436975,1821.7,1821.6,14.7352794]
[1746466776984,1.42436975,1821.7,1821.6,20.61301898]
[1746466777285,1.42436975,1821.7,1821.6,21.48078661]
[1746466777787,1.42436975,1821.7,1821.6,15.60304703]
[1746466778160,1.42436975,1821.7,1821.6,16.00939831]
[1746466778551,1.42436975,1821.7,1821.6,21.88713789]
[1746466778944,1.42436975,1821.7,1821.6,16.00939831]
[1746466779184,1.42436975,1821.7,1821.6,22.13939831]
[1746466780179,1.42436975,1821.7,1821.6,18.18304703]
[1746466780381,1.42436975,1821.7,1821.6,18.73304703]
[1746466786379,1.42436975,1821.7,1821.6,11.8256]
[1746466786684,1.42436975,1821.7,1821.6,11.012]
[1746466787193,1.42436975,1821.7,1821.6,4.882]
[1746466787758,6.91390272,1821.7,1821.3,11.008]
[1746466788008,1.42436975,1821.7,1821.5,5.48995076]
[1746466788811,1.42436975,1821.7,1821.5,5.48988198]
[1746466788970,1.42436975,1821.7,1821.2,0.7731]
[1746466789158,1.42436975,1821.7,1821.4,5.49004417]
[1746466789359,1.42436975,1821.7,1821.5,5.48980758]
[1746466789557,1.42436975,1821.7,1821.4,5.49004417]
[1746466789791,6.91394575,1821.7,1821.3,6.04033768]
[1746466789998,1.42436975,1821.7,1821.2,12.39380856]
[1746466790195,6.91395729,1821.7,1821.3,5.54533334]
[1746466790401,0.7809,1821.5,1821.3,0.05489207]
[1746466790560,0.7809,1821.5,1821.2,11.62069105]
[1746466790766,8.38620909,1821.7,1821.3,0.05489791]
[1746466790969,2.89666548,1821.7,1821.3,5.49042777]
[1746466791271,2.89666548,1821.7,1821.0,24.42016229]
[1746466791272,0.28966655,1821.6,1821.0,24.306]
[1746466791470,5.49076039,1821.3,1821.0,29.184]
[1746466791684,5.4908058,1821.3,1821.0,29.184]
[1746466791901,5.4908058,1821.3,1821.0,34.67547805]
[1746466792586,5.49015522,1821.5,1821.0,34.67547805]
[1746466792900,5.49045561,1821.4,1821.0,37.56220859]
[1746466793201,5.49072208,1821.3,1821.0,29.184]
[1746466793421,5.49043508,1821.4,1821.0,34.67538566]
[1746466793604,5.49076144,1821.3,1821.0,29.184]
[1746466794098,5.49076144,1821.3,1821.1,0.05490585]
[1746466794396,5.49043508,1821.4,1821.1,0.05490585]
[1746466795099,5.49059026,1821.3,1821.1,0.05490585]
[1746466795502,5.49043508,1821.4,1821.1,0.05490585]
[1746466795704,5.4905869,1821.3,1821.1,0.05490585]
[1746466795865,6.9137683,1821.7,1821.3,10.98083683]
[1746466796065,0.7907,1821.6,1821.3,11.6203892]
[1746466796267,0.7907,1821.6,1821.3,6.13]
[1746466796479,6.28038795,1821.6,1821.3,6.13]
[1746466796672,6.91388222,1821.7,1821.3,6.13]
[1746466796864,5.48992019,1821.6,1821.3,6.13]
[1746466797307,5.48995403,1821.6,1821.3,6.13]
[1746466797513,5.4900972,1821.5,1821.3,6.13]
[1746466797680,5.489917,1821.6,1821.3,6.13]
[1746466797885,5.49020818,1821.5,1821.3,6.13]
[1746466798086,5.48985309,1821.6,1821.3,6.13]
[1746466798987,5.49011229,1821.5,1821.3,6.13]
[1746466799383,5.4902822,1821.4,1821.3,6.13]
[1746466799588,5.49084706,1821.3,1821.0,4.878]
[1746466799898,0.7854,1821.4,1821.0,10.36939795]
[1746466800231,0.7854,1821.4,1821.1,5.49107005]
[1746466800431,0.7854,1821.4,1821.2,5.49084588]
[1746466800638,9.28357233,1821.6,1821.2,5.49084588]
[1746466800949,10.97246129,1821.6,1821.1,5.54592364]
[1746466801134,10.97246129,1821.6,1821.1,5.54591836]
[1746466801321,16.46239271,1821.6,1821.2,5.49078699]
[1746466801487,5.48999013,1821.5,1821.2,5.49078699]
[1746466802214,10.97246129,1821.6,1821.2,5.49078699]
[1746466802585,5.48258896,1821.6,1821.3,5.49056869]
[1746466802915,0.7937,1821.6,1821.3,5.49037774]
[1746466803118,6.28345211,1821.6,1821.3,5.49037774]
[1746466803294,0.7937,1821.6,1821.3,5.49037774]
[1746466804061,0.7937,1821.6,1821.3,10.98075809]
[1746466804236,9.91379082,1821.7,1821.3,5.49037774]
[1746466804559,4.42436975,1821.7,1821.4,5.49023148]
[1746466804704,1.42436975,1821.7,1821.4,5.49023148]
[1746466805638,6.91379236,1821.7,1821.4,5.4901757]
[1746466806046,0.8246,1821.4,1821.2,6.13]
[1746466806349,11.80445231,1821.6,1821.2,11.62068597]
[1746466806506,5.49000536,1821.5,1821.2,6.13]
[1746466806712,5.4904,1821.4,1821.2,6.13]
[1746466807320,5.49017969,1821.5,1821.2,6.13]
[1746466807519,5.49028278,1821.4,1821.2,6.13]
[1746466807715,6.24478364,1821.3,1821.2,6.13]
[1746466807915,0.7542,1821.3,1821.0,10.36935813]
[1746466808130,6.24499716,1821.3,1821.0,10.36944639]
[1746466808336,11.7358109,1821.3,1821.0,4.878]
[1746466808520,6.24499716,1821.3,1821.0,4.878]
[1746466808719,5.49106515,1821.2,1821.0,4.878]
[1746466809048,5.49106515,1821.2,1820.7,5.49238177]
[1746466809049,0.62452652,1821.2,1820.7,4.868]
[1746466809354,5.49209138,1820.8,1820.7,4.868]
[1746466809553,5.49260736,1820.7,1820.4,32.86461305]
[1746466809710,6.29396994,1820.8,1820.4,38.35779256]
[1746466809910,6.29396994,1820.8,1820.4,26.73461305]
[1746466810111,6.29396994,1820.8,1820.4,32.22772645]
[1746466810312,6.29396994,1820.8,1820.4,32.22769469]
[1746466810512,0.8017,1820.8,1820.5,5.49296626]
[1746466811050,6.30773267,1821.0,1820.6,5.54747132]
[1746466811225,5.49190175,1820.9,1820.4,28.52208263]
[1746466811425,0.8161,1821.0,1820.4,28.52208263]
[1746466811648,5.49251162,1820.7,1820.4,23.029]
[1746466812349,5.4929184,1820.6,1820.4,23.029]
[1746466812552,6.24935155,1820.7,1820.4,23.029]
[1746466813048,0.7568,1820.7,1820.4,23.029]
[1746466813209,0.7568,1820.7,1820.4,28.52220331]
[1746466814754,0.7568,1820.7,1820.4,28.52212243]
[1746466815536,6.24928701,1820.7,1820.4,28.52212243]
[1746466815950,0.7568,1820.7,1820.4,28.52212243]
[1746466816837,0.7568,1820.7,1820.4,28.52208771]
[1746466817249,0.7568,1820.7,1820.4,34.01519725]
[1746466817559,0.7568,1820.7,1820.4,28.52208771]
[1746466819581,8.49196507,1820.9,1820.5,5.49297883]
[1746466819873,0.763,1820.9,1820.7,5.49230306]
[1746466820265,0.763,1820.9,1820.6,11.04005756]
[1746466820467,0.763,1820.9,1820.6,11.03989191]
[1746466820661,0.763,1820.9,1820.7,5.49237376]
[1746466820976,6.25482157,1820.9,1820.5,5.49283846]
[1746466821144,6.25482157,1820.9,1820.5,5.49280184]
[1746466821476,6.25482157,1820.9,1820.5,10.98557624]
[1746466822181,6.25482157,1820.9,1820.6,5.49262154]
[1746466822774,0.763,1820.9,1820.6,5.49250313]
[1746466822979,0.763,1820.9,1820.6,11.03991061]
[1746466823176,0.763,1820.9,1820.6,5.49248707]
[1746466823481,6.25491397,1820.9,1820.5,10.98560762]
[1746466823842,6.25491397,1820.9,1820.6,5.49263007]
[1746466824043,11.74694791,1820.9,1820.5,5.49280261]
[1746466824242,6.25491397,1820.9,1820.4,34.65215785]
[1746466824443,5.49217577,1820.8,1820.5,5.49297177]
[1746466824645,5.49217577,1820.8,1820.4,40.14524528]
[1746466824857,5.49217577,1820.8,1820.4,34.65210014]
[1746466825054,6.66688474,1820.8,1820.4,34.65226372]
[1746466825386,6.25491051,1820.9,1820.5,5.49288657]
[1746466825746,6.25491051,1820.9,1820.6,5.49267744]
[1746466826295,6.25491051,1820.9,1820.5,10.98566169]
[1746466826448,11.74699878,1820.9,1820.5,5.49277512]
[1746466826804,5.49299642,1820.5,1820.4,6.13]
[1746466826943,5.49299642,1820.5,1819.9,0.7502]
[1746466826944,5.49450549,1820.0,1819.9,6.13]
[1746466827151,5.49475762,1820.0,1819.8,14.70461305]
[1746466827373,5.49450438,1820.1,1819.8,14.70461305]
[1746466827586,6.25994372,1820.2,1819.8,17.47481239]
[1746466827889,6.54706416,1820.4,1820.0,5.49439794]
[1746466828246,5.49361966,1820.3,1819.9,5.4946121]
[1746466828488,6.25982665,1820.2,1819.9,5.4946121]
[1746466829001,0.7659,1820.2,1819.9,5.4946121]
[1746466829157,0.7659,1820.2,1819.9,5.4945838]
[1746466829358,0.7659,1820.2,1820.0,5.49444074]
[1746466830288,0.7659,1820.2,1820.0,5.49450403]
[1746466830465,0.7659,1820.2,1819.9,5.49460204]
[1746466830788,0.7659,1820.2,1819.9,5.49460072]
[1746466831081,0.7659,1820.2,1819.9,5.49459473]
[1746466831283,0.7659,1820.2,1820.0,5.49449516]
[1746466831587,6.60836369,1820.4,1820.0,5.49434056]
[1746466831752,8.11851746,1820.4,1820.0,5.49434056]
[1746466831952,5.49362302,1820.3,1820.1,0.20274396]
[1746466832368,13.61207293,1820.4,1820.1,0.20274396]
[1746466832596,8.11851746,1820.4,1820.1,0.20274396]
[1746466833360,6.60836369,1820.4,1820.1,5.69691236]
[1746466833598,1.1149471,1820.4,1820.1,5.69691236]
[1746466834098,1.1149471,1820.4,1820.1,0.20274396]
[1746466834266,1.1149471,1820.4,1820.1,5.69692483]
[1746466834267,4.1149471,1820.4,1820.1,5.69692483]
[1746466835098,9.60834245,1820.4,1820.1,0.20274396]
[1746466835270,4.1149471,1820.4,1820.1,0.20274396]
[1746466835568,4.1149471,1820.4,1820.1,5.69685045]
[1746466836871,5.49369045,1820.3,1820.1,0.20274396]
[1746466837072,6.60844315,1820.4,1820.0,5.49449825]
[1746466837280,5.49361881,1820.3,1820.1,0.19855026]
[1746466838402,6.60844315,1820.4,1820.1,0.19855026]
[1746466838563,12.10201922,1820.4,1820.1,0.19855026]
[1746466839091,5.49362033,1820.3,1820.1,0.19855026]
[1746466839793,5.49362033,1820.3,1819.9,6.2775623]
[1746466839995,5.49362033,1820.3,1820.2,0.19822078]
[1746466840182,10.98751243,1820.3,1819.9,6.2775623]
[1746466840385,5.49362033,1820.3,1820.2,0.19822078]
[1746466840605,6.60834362,1820.4,1820.0,10.98873443]
[1746466840805,6.60834362,1820.4,1820.2,0.19822078]
[1746466840984,6.60834362,1820.4,1820.1,0.19855026]
[1746466841196,9.60834362,1820.4,1820.3,0.19789133]
[1746466841380,15.10189596,1820.4,1820.2,0.19822078]
[1746466841678,15.10189596,1820.4,1820.0,5.49429206]
[1746466841679,9.60834362,1820.4,1820.3,0.19789133]
[1746466841936,5.49361952,1820.3,1820.0,5.49429206]
[1746466842097,5.49361952,1820.3,1820.0,6.83554513]
[1746466842815,5.49370142,1820.3,1820.0,6.83554513]
[1746466842988,5.49393578,1820.2,1820.0,1.34125307]
[1746466843189,10.98811016,1820.2,1819.8,10.36394527]
[1746466843394,5.49393578,1820.2,1819.8,10.36394527]
[1746466843588,10.98809665,1820.2,1819.8,10.36394527]
[1746466843819,5.49393578,1820.2,1819.9,5.49476693]
[1746466844022,5.49393578,1820.2,1819.9,7.08063815]
[1746466845020,5.49393578,1820.2,1819.8,15.85888963]
[1746466845226,5.49393578,1820.2,1819.8,10.36392443]
[1746466845521,5.49393578,1820.2,1819.8,10.36390381]
[1746466845721,5.49393578,1820.2,1819.8,15.85881657]
[1746466846019,5.49393578,1820.2,1819.9,5.49474253]
[1746466847393,4.1149471,1820.4,1819.9,5.49474253]
[1746466847613,15.10203249,1820.4,1820.0,5.49434242]
[1746466847813,15.10198018,1820.4,1820.0,5.49434242]
[1746466847982,15.10202224,1820.4,1820.0,5.49434242]
[1746466848184,9.60844952,1820.4,1820.0,5.49434242]
[1746466848384,5.49361405,1820.3,1820.0,6.75183192]
[1746466849680,9.60844952,1820.4,1820.0,6.75183192]
[1746466849681,9.60844952,1820.4,1820.0,7.62676631]
[1746466849886,3.2876471,1820.4,1820.1,5.54904509]
[1746466850101,8.78094812,1820.4,1820.1,5.54904509]
[1746466850297,8.78094812,1820.4,1820.0,7.57180507]
[1746466850509,8.78094812,1820.4,1820.1,0.75718051]
[1746466850723,14.27449877,1820.4,1820.0,6.31429332]
[1746466852317,5.49377305,1820.3,1820.1,0.19897367]
[1746466852886,6.24410176,1820.2,1820.1,0.19897367]
[1746466853090,5.49432441,1820.1,1819.9,6.13]
[1746466853320,6.24410176,1820.2,1820.0,0.19930319]
[1746466855855,0.7502,1820.2,1820.0,0.19930319]
[1746466856060,0.7502,1820.2,1820.0,5.69379698]
[1746466856434,0.7502,1820.2,1820.0,0.19930319]
[1746466856831,8.78107329,1820.4,1820.0,0.19930319]
[1746466856832,9.58297329,1820.4,1820.0,5.69366838]
[1746466857026,9.58297329,1820.4,1820.0,5.6936173]
[1746466857759,5.49360057,1820.3,1820.0,5.6936173]
[1746466858125,5.49360057,1820.3,1820.0,0.19930319]
[1746466858327,5.49390521,1820.2,1820.0,0.19930319]
[1746466858521,5.80365448,1820.1,1820.0,0.19930319]
[1746466858828,5.80365448,1820.1,1819.8,11.14842136]
[1746466859039,0.30945087,1820.1,1819.9,0.19963274]
[1746466859322,0.30945087,1820.0,1819.9,0.19963274]
[1746466861365,0.30945087,1820.0,1819.9,5.69444014]
[1746466861969,0.30945087,1820.0,1819.9,0.19963274]
[1746466862670,5.80395636,1820.0,1819.9,0.19963274]
[1746466862867,5.80395636,1820.0,1819.6,17.15388867]
[1746466863080,5.80395636,1820.0,1819.7,5.6956697]
[1746466863369,5.80395636,1820.0,1819.7,5.69555837]
[1746466863730,0.30945087,1819.9,1819.7,5.69555837]
[1746466864274,0.30945087,1819.9,1819.7,0.20029196]
[1746466864275,5.49510935,1819.8,1819.7,0.20029196]
[1746466864564,0.30945087,1819.8,1819.5,0.87645373]
[1746466864751,0.30945087,1819.8,1819.7,5.69730306]
[1746466864925,0.30945087,1819.8,1819.7,5.49541133]
[1746466865126,0.30945087,1819.8,1819.7,5.69730306]
[1746466865351,0.30945087,1819.8,1819.7,6.87154027]
[1746466865568,0.30945087,1819.8,1819.7,7.62764027]
[1746466868270,0.30945087,1819.8,1819.7,10.80496313]
[1746466868663,11.81093792,1820.4,1820.0,5.49439291]
[1746466868997,11.81093792,1820.4,1820.1,0.20066757]
[1746466869200,0.30924604,1820.3,1820.1,0.20066757]
[1746466869910,0.30924604,1820.2,1820.1,0.20066757]
[1746466870060,0.30924604,1820.2,1819.9,11.0442435]
[1746466870257,0.30924604,1820.2,1820.0,5.69543948]
[1746466870462,0.30924604,1820.1,1820.0,5.69543948]
[1746466871307,0.30924604,1820.1,1820.0,5.75037995]